[Event "*** Titled Tuesday Blitz"]
[Site "Chess.com"]
[Date "2021.04.27"]
[Round "10"]
[White "annacramling"]
[Black "gxbg2000"]
[Result "1-0"]
[WhiteElo "2076"]
[BlackElo "1958"]
[TimeControl "180+1"]
[EndTime "11:53:20 PDT"]
[Termination "annacramling won by resignation"]

1. d4 {[%clk 0:03:00.9]} 1... Nf6 {[%clk 0:02:59.5]} 2. c4 {[%clk 0:03:01]} 2...
d5 {[%clk 0:02:59.5]} 3. cxd5 {[%clk 0:03:00.4]} 3... Nxd5 {[%clk 0:02:58.6]} 4.
e4 {[%clk 0:03:00.4]} 4... Nf6 {[%clk 0:02:58.5]} 5. Nc3 {[%clk 0:03:00.3]} 5...
e6 {[%clk 0:02:58.2]} 6. Bg5 {[%clk 0:02:56.8]} 6... Be7 {[%clk 0:02:58.1]} 7.
Nf3 {[%clk 0:02:55.1]} 7... O-O {[%clk 0:02:57.5]} 8. Bd3 {[%clk 0:02:49]} 8...
Nbd7 {[%clk 0:02:56.7]} 9. O-O {[%clk 0:02:42.7]} 9... b6 {[%clk 0:02:56.5]} 10.
Rc1 {[%clk 0:02:41.9]} 10... Bb7 {[%clk 0:02:56.3]} 11. Bb1 {[%clk 0:02:38.7]}
11... c5 {[%clk 0:02:55.7]} 12. e5 {[%clk 0:02:23.6]} 12... Nd5 {[%clk
0:02:53.5]} 13. Qd3 {[%clk 0:02:17.4]} 13... g6 {[%clk 0:02:52.8]} 14. Bh6
{[%clk 0:02:16.1]} 14... Re8 {[%clk 0:02:52.4]} 15. Ne4 {[%clk 0:02:14.6]} 15...
f5 {[%clk 0:02:43.9]} 16. exf6 {[%clk 0:02:11.5]} 16... N5xf6 {[%clk 0:02:43.2]}
17. Nfg5 {[%clk 0:01:54.9]} 17... Nxe4 {[%clk 0:02:38.9]} 18. Nxe4 {[%clk
0:01:54.5]} 18... Nf6 {[%clk 0:02:36.7]} 19. Ng5 {[%clk 0:01:40.7]} 19... Bd5
{[%clk 0:02:14.4]} 20. Nxh7 {[%clk 0:01:26.2]} 20... Ne4 {[%clk 0:01:53.9]} 21.
f3 {[%clk 0:00:53.4]} 21... Kxh7 {[%clk 0:01:34.8]} 22. fxe4 {[%clk 0:00:52.9]}
22... Bb7 {[%clk 0:01:12]} 23. e5 {[%clk 0:00:42.6]} 23... Qxd4+ {[%clk
0:01:11.1]} 24. Qxd4 {[%clk 0:00:40.3]} 24... cxd4 {[%clk 0:01:11.2]} 25. Bd2
{[%clk 0:00:23.9]} 25... Bc5 {[%clk 0:01:10.3]} 26. Rf7+ {[%clk 0:00:20.9]}
26... Kg8 {[%clk 0:01:06.2]} 27. Rxb7 {[%clk 0:00:20.7]} 27... Rad8 {[%clk
0:01:04.1]} 28. Bg5 {[%clk 0:00:18.7]} 28... Re7 {[%clk 0:01:03.5]} 29. Bxe7
{[%clk 0:00:17.7]} 29... Bxe7 {[%clk 0:01:03.5]} 30. Rxe7 {[%clk 0:00:16.9]}
30... d3 {[%clk 0:01:03.6]} 31. Rd1 {[%clk 0:00:15.2]} 31... d2 {[%clk
0:01:03.6]} 32. Bxg6 {[%clk 0:00:10.5]} 32... Rd5 {[%clk 0:01:01.4]} 33. Rxe6
{[%clk 0:00:05.8]} 33... Kg7 {[%clk 0:01:00.8]} 34. Rd6 {[%clk 0:00:05.7]} 34...
Rxe5 {[%clk 0:00:59.6]} 35. R1xd2 {[%clk 0:00:05.9]} 35... Re1+ {[%clk
0:00:59.3]} 36. Kf2 {[%clk 0:00:05.8]} 36... Re7 {[%clk 0:00:59.9]} 37. Bf5
{[%clk 0:00:05.8]} 37... Re5 {[%clk 0:00:59.3]} 38. Rd7+ {[%clk 0:00:06.1]}
38... Kf6 {[%clk 0:00:59.2]} 39. g4 {[%clk 0:00:07]} 39... Kg5 {[%clk 0:00:59]}
40. h3 {[%clk 0:00:07.1]} 40... Kf4 {[%clk 0:00:59.2]} 41. R2d4+ {[%clk
0:00:07.3]} 41... Kg5 {[%clk 0:00:59]} 42. Kf3 {[%clk 0:00:07.2]} 42... Re1
{[%clk 0:00:58.5]} 43. Rg7+ {[%clk 0:00:06.2]} 43... Kf6 {[%clk 0:00:58]} 44.
Rdd7 {[%clk 0:00:06.9]} 44... Ke5 {[%clk 0:00:57]} 45. Rge7+ {[%clk 0:00:06.6]}
45... Kf6 {[%clk 0:00:56.6]} 46. Rxe1 {[%clk 0:00:07.5]} 46... a5 {[%clk
0:00:55.7]} 47. Kf4 {[%clk 0:00:07.5]} 1-0

[Event "*** Titled Tuesday Blitz"]
[Site "Chess.com"]
[Date "2021.04.27"]
[Round "10"]
[White "Nuvas"]
[Black "Caterpiller35"]
[Result "1-0"]
[WhiteElo "2630"]
[BlackElo "2479"]
[TimeControl "180+1"]
[EndTime "11:53:21 PDT"]
[Termination "Nuvas won by resignation"]

1. d4 {[%clk 0:03:00.9]} 1... Nf6 {[%clk 0:02:59.5]} 2. c4 {[%clk 0:03:01.2]}
2... e6 {[%clk 0:03:00]} 3. Nc3 {[%clk 0:03:01.9]} 3... Bb4 {[%clk 0:03:00.6]}
4. Qc2 {[%clk 0:03:02.5]} 4... d5 {[%clk 0:03:00.6]} 5. cxd5 {[%clk 0:03:02.4]}
5... exd5 {[%clk 0:02:58.9]} 6. Bg5 {[%clk 0:03:02.6]} 6... c5 {[%clk
0:02:57.8]} 7. dxc5 {[%clk 0:02:58.8]} 7... Be6 {[%clk 0:02:57.6]} 8. e3 {[%clk
0:02:58.2]} 8... h6 {[%clk 0:02:57]} 9. Bh4 {[%clk 0:02:57.7]} 9... Nbd7 {[%clk
0:02:56.1]} 10. a3 {[%clk 0:02:42.9]} 10... Bxc5 {[%clk 0:02:54.3]} 11. Nf3
{[%clk 0:02:38.9]} 11... Rc8 {[%clk 0:02:53.8]} 12. Bd3 {[%clk 0:02:33.3]} 12...
O-O {[%clk 0:02:53.4]} 13. O-O {[%clk 0:02:33.4]} 13... Be7 {[%clk 0:02:11.3]}
14. Rad1 {[%clk 0:02:22.1]} 14... Bg4 {[%clk 0:02:03.8]} 15. Bf5 {[%clk
0:02:13.9]} 15... Bxf3 {[%clk 0:01:55.8]} 16. gxf3 {[%clk 0:02:14.8]} 16... Ne5
{[%clk 0:01:35.6]} 17. Qe2 {[%clk 0:02:03.3]} 17... Rc5 {[%clk 0:01:22.6]} 18.
f4 {[%clk 0:01:59.1]} 18... Nc6 {[%clk 0:01:16.3]} 19. Nb5 {[%clk 0:01:21.5]}
19... Re8 {[%clk 0:00:48.2]} 20. b4 {[%clk 0:01:20.3]} 20... Rc4 {[%clk
0:00:19.8]} 21. Bd3 {[%clk 0:01:20.1]} 21... Qc8 {[%clk 0:00:16.8]} 22. Bxf6
{[%clk 0:01:16.8]} 22... Bxf6 {[%clk 0:00:16.4]} 23. Nd6 {[%clk 0:01:16.9]}
23... Qh3 {[%clk 0:00:15.6]} 24. Nxe8 {[%clk 0:01:14]} 24... Be5 {[%clk
0:00:14.5]} 25. Bxc4 {[%clk 0:01:08]} 25... dxc4 {[%clk 0:00:14.5]} 26. fxe5
{[%clk 0:01:00.2]} 26... Nxe5 {[%clk 0:00:14]} 27. f4 {[%clk 0:01:00.9]} 27...
Ng4 {[%clk 0:00:14]} 28. Rf3 {[%clk 0:00:49]} 28... Qh5 {[%clk 0:00:13.6]} 29.
Rg3 {[%clk 0:00:48.9]} 29... f5 {[%clk 0:00:12.2]} 30. Qxc4+ {[%clk 0:00:34.4]}
30... Kh7 {[%clk 0:00:11.6]} 31. Qe2 {[%clk 0:00:20.5]} 31... Qxe8 {[%clk
0:00:10.4]} 32. Rxg4 {[%clk 0:00:20.9]} 32... fxg4 {[%clk 0:00:11.3]} 33. Qd3+
{[%clk 0:00:21.4]} 1-0

[Event "*** Titled Tuesday Blitz"]
[Site "Chess.com"]
[Date "2021.04.27"]
[Round "10"]
[White "mr65"]
[Black "JoseRemolar"]
[Result "1-0"]
[WhiteElo "2229"]
[BlackElo "2428"]
[TimeControl "180+1"]
[EndTime "11:53:21 PDT"]
[Termination "mr65 won by checkmate"]

1. e4 {[%clk 0:03:00.9]} 1... c5 {[%clk 0:02:59.5]} 2. Ne2 {[%clk 0:03:00.8]}
2... d6 {[%clk 0:02:58.6]} 3. d4 {[%clk 0:02:59.6]} 3... cxd4 {[%clk 0:02:59.5]}
4. Nxd4 {[%clk 0:02:59.2]} 4... Nf6 {[%clk 0:02:59.7]} 5. Nc3 {[%clk 0:02:59.3]}
5... a6 {[%clk 0:02:59.9]} 6. f4 {[%clk 0:02:59.1]} 6... e6 {[%clk 0:02:35.8]}
7. Bd3 {[%clk 0:02:55.9]} 7... b5 {[%clk 0:02:33.6]} 8. a3 {[%clk 0:02:53.2]}
8... Bb7 {[%clk 0:02:32.9]} 9. O-O {[%clk 0:02:52.8]} 9... Be7 {[%clk
0:02:29.3]} 10. Kh1 {[%clk 0:02:46.4]} 10... Nbd7 {[%clk 0:02:19.5]} 11. Qe2
{[%clk 0:02:45.8]} 11... Qc7 {[%clk 0:01:58.1]} 12. Be3 {[%clk 0:02:41.5]} 12...
h5 {[%clk 0:01:57]} 13. f5 {[%clk 0:02:30.2]} 13... e5 {[%clk 0:01:47.6]} 14.
Nf3 {[%clk 0:02:29.8]} 14... h4 {[%clk 0:01:38.6]} 15. Bg5 {[%clk 0:02:25.6]}
15... Nh5 {[%clk 0:01:27.9]} 16. Be3 {[%clk 0:02:02.8]} 16... Ndf6 {[%clk
0:00:48]} 17. Nxh4 {[%clk 0:01:51.1]} 17... d5 {[%clk 0:00:43.1]} 18. exd5
{[%clk 0:01:28]} 18... Nxd5 {[%clk 0:00:40]} 19. Nxd5 {[%clk 0:01:19.1]} 19...
Bxd5 {[%clk 0:00:40.9]} 20. f6 {[%clk 0:01:08.3]} 20... Bxf6 {[%clk 0:00:33.3]}
21. Rxf6 {[%clk 0:01:06.5]} 21... Nxf6 {[%clk 0:00:31.2]} 22. Nf5 {[%clk
0:01:01.8]} 22... e4 {[%clk 0:00:27.7]} 23. Bg1 {[%clk 0:00:51.6]} 23... O-O-O
{[%clk 0:00:20.6]} 24. Rd1 {[%clk 0:00:35.7]} 24... exd3 {[%clk 0:00:18.6]} 25.
Rxd3 {[%clk 0:00:35.4]} 25... Rde8 {[%clk 0:00:09.5]} 26. Qf2 {[%clk 0:00:29.4]}
26... Qb7 {[%clk 0:00:08.9]} 27. Nd6+ {[%clk 0:00:28.2]} 27... Kb8 {[%clk
0:00:05.5]} 28. Nxb7 {[%clk 0:00:27.9]} 28... Bxb7 {[%clk 0:00:05.5]} 29. Qa7+
{[%clk 0:00:24.6]} 29... Kc8 {[%clk 0:00:03.7]} 30. Rc3+ {[%clk 0:00:24.2]}
30... Kd8 {[%clk 0:00:02.9]} 31. Qxb7 {[%clk 0:00:22.3]} 31... Ng4 {[%clk
0:00:01.8]} 32. Rc8# {[%clk 0:00:21.5]} 1-0

[Event "*** Titled Tuesday Blitz"]
[Site "Chess.com"]
[Date "2021.04.27"]
[Round "10"]
[White "Manukyan_Artak"]
[Black "tusplingher"]
[Result "1-0"]
[WhiteElo "2457"]
[BlackElo "2284"]
[TimeControl "180+1"]
[EndTime "11:53:22 PDT"]
[Termination "Manukyan_Artak won by resignation"]

1. e4 {[%clk 0:03:00.9]} 1... c5 {[%clk 0:02:59.6]} 2. Nf3 {[%clk 0:03:00.6]}
2... g6 {[%clk 0:02:59.7]} 3. c3 {[%clk 0:03:00.7]} 3... d5 {[%clk 0:02:58.5]}
4. exd5 {[%clk 0:03:00]} 4... Qxd5 {[%clk 0:02:59.4]} 5. d4 {[%clk 0:03:00.5]}
5... Bg7 {[%clk 0:02:58.7]} 6. Be3 {[%clk 0:02:59.9]} 6... Nf6 {[%clk
0:02:58.4]} 7. dxc5 {[%clk 0:02:59.4]} 7... Qxd1+ {[%clk 0:02:56.9]} 8. Kxd1
{[%clk 0:03:00.3]} 8... Ng4 {[%clk 0:02:56.6]} 9. Nbd2 {[%clk 0:02:53]} 9...
Nxe3+ {[%clk 0:02:56.6]} 10. fxe3 {[%clk 0:02:52.8]} 10... O-O {[%clk
0:02:56.2]} 11. Nb3 {[%clk 0:02:48.1]} 11... a5 {[%clk 0:02:54.6]} 12. a4 {[%clk
0:02:47.6]} 12... Bg4 {[%clk 0:02:52.3]} 13. h3 {[%clk 0:02:40.7]} 13... Bxf3+
{[%clk 0:02:51.1]} 14. gxf3 {[%clk 0:02:40.6]} 14... Nc6 {[%clk 0:02:50.1]} 15.
Bb5 {[%clk 0:02:39.6]} 15... Ne5 {[%clk 0:02:49.5]} 16. Ke2 {[%clk 0:02:38.8]}
16... Rfd8 {[%clk 0:02:47.3]} 17. Rhd1 {[%clk 0:02:38.6]} 17... Rdc8 {[%clk
0:02:41.4]} 18. f4 {[%clk 0:02:30.6]} 18... Nc6 {[%clk 0:02:37.8]} 19. Rd7
{[%clk 0:02:28.8]} 19... Rab8 {[%clk 0:02:32.7]} 20. Ra2 {[%clk 0:01:50.6]}
20... e5 {[%clk 0:02:30.3]} 21. Bxc6 {[%clk 0:01:38]} 21... Rxc6 {[%clk
0:02:26.8]} 22. fxe5 {[%clk 0:01:26.3]} 22... Bxe5 {[%clk 0:02:25.5]} 23. Rd5
{[%clk 0:01:26.4]} 23... Bc7 {[%clk 0:02:24.2]} 24. Nd4 {[%clk 0:01:21.1]} 24...
Rf6 {[%clk 0:02:23.9]} 25. Nb5 {[%clk 0:01:20.2]} 25... Bg3 {[%clk 0:02:19]} 26.
Kd3 {[%clk 0:01:14.8]} 26... Re8 {[%clk 0:02:17]} 27. b4 {[%clk 0:01:12.1]}
27... Rf3 {[%clk 0:02:08.2]} 28. Re2 {[%clk 0:01:10.8]} 28... axb4 {[%clk
0:02:07.1]} 29. cxb4 {[%clk 0:01:10.8]} 29... Bf4 {[%clk 0:02:04.9]} 30. Nd6
{[%clk 0:01:05.2]} 30... Re7 {[%clk 0:01:50.7]} 31. Kc4 {[%clk 0:00:58.8]} 31...
Bxe3 {[%clk 0:01:48.7]} 32. Rd3 {[%clk 0:00:53.2]} 32... f5 {[%clk 0:01:41.5]}
33. Kb5 {[%clk 0:00:50.1]} 33... f4 {[%clk 0:01:41.7]} 34. h4 {[%clk 0:00:39.9]}
34... Rf1 {[%clk 0:01:41.4]} 35. Nc4 {[%clk 0:00:39.2]} 35... Rb1 {[%clk
0:01:35.4]} 36. Nxe3 {[%clk 0:00:38.3]} 36... Re4 {[%clk 0:01:32.9]} 37. Kb6
{[%clk 0:00:31.6]} 37... Rbxb4+ {[%clk 0:01:31.5]} 38. Kc7 {[%clk 0:00:31.8]}
38... fxe3 {[%clk 0:01:30.9]} 39. Rdxe3 {[%clk 0:00:31.5]} 39... Rec4 {[%clk
0:01:29.7]} 40. Re5 {[%clk 0:00:28.2]} 40... b6 {[%clk 0:01:26]} 41. c6 {[%clk
0:00:27.8]} 41... Rxa4 {[%clk 0:01:25.3]} 42. Kb7 {[%clk 0:00:26.9]} 42... Rxh4
{[%clk 0:01:16.5]} 43. c7 {[%clk 0:00:27]} 43... Rhc4 {[%clk 0:01:16.1]} 44.
c8=Q+ {[%clk 0:00:21.3]} 44... Rxc8 {[%clk 0:01:15.9]} 45. Kxc8 {[%clk
0:00:22.2]} 45... Kg7 {[%clk 0:01:16.2]} 46. Rb5 {[%clk 0:00:21.4]} 46... Rc4+
{[%clk 0:01:14.5]} 47. Kb7 {[%clk 0:00:21.4]} 47... g5 {[%clk 0:01:14.5]} 48.
Rxg5+ {[%clk 0:00:20.2]} 48... Kf6 {[%clk 0:01:14]} 49. Rb5 {[%clk 0:00:21.1]}
49... Kg6 {[%clk 0:01:04.9]} 50. Rxb6+ {[%clk 0:00:21.4]} 50... Kg5 {[%clk
0:01:04]} 51. Rh2 {[%clk 0:00:21.4]} 51... h5 {[%clk 0:01:02.3]} 52. Rb5+ {[%clk
0:00:21.3]} 52... Kg4 {[%clk 0:01:02.6]} 53. Rbxh5 {[%clk 0:00:21.3]} 53... Kg3
{[%clk 0:01:02.1]} 54. R5h3+ {[%clk 0:00:20.8]} 54... Kg4 {[%clk 0:01:01.2]} 55.
Rh4+ {[%clk 0:00:21.7]} 1-0

[Event "*** Titled Tuesday Blitz"]
[Site "Chess.com"]
[Date "2021.04.27"]
[Round "10"]
[White "Julianos82"]
[Black "SanchezKelvin"]
[Result "0-1"]
[WhiteElo "2297"]
[BlackElo "252"]
[TimeControl "180+1"]
[EndTime "11:53:26 PDT"]
[Termination "SanchezKelvin won by resignation"]

1. d4 {[%clk 0:03:00.9]} 1... d5 {[%clk 0:02:51.1]} 2. Bf4 {[%clk 0:02:59.5]}
2... Nf6 {[%clk 0:02:50.7]} 3. e3 {[%clk 0:02:59.1]} 3... c5 {[%clk 0:02:49.8]}
4. c3 {[%clk 0:02:57.3]} 4... Nc6 {[%clk 0:02:47.7]} 5. Bd3 {[%clk 0:02:57]}
5... Qb6 {[%clk 0:02:46.9]} 6. Nd2 {[%clk 0:02:55]} 6... Bg4 {[%clk 0:02:43.3]}
7. f3 {[%clk 0:02:50.9]} 7... Bh5 {[%clk 0:02:43.3]} 8. Ne2 {[%clk 0:02:48.9]}
8... e6 {[%clk 0:02:41.6]} 9. h4 {[%clk 0:02:48.3]} 9... Bg6 {[%clk 0:02:38.3]}
10. Bxg6 {[%clk 0:02:38.9]} 10... hxg6 {[%clk 0:02:36.7]} 11. Qc2 {[%clk
0:02:38.9]} 11... Rc8 {[%clk 0:02:35.2]} 12. Bg5 {[%clk 0:02:30.7]} 12... cxd4
{[%clk 0:02:31.8]} 13. exd4 {[%clk 0:02:26.4]} 13... Nxd4 {[%clk 0:02:23.3]} 14.
Nxd4 {[%clk 0:02:20.9]} 14... Qxd4 {[%clk 0:02:22.2]} 15. O-O-O {[%clk
0:02:14.6]} 15... Qb6 {[%clk 0:02:19]} 16. Nb3 {[%clk 0:02:09.7]} 16... Be7
{[%clk 0:02:18]} 17. Kb1 {[%clk 0:02:09]} 17... a5 {[%clk 0:02:16.9]} 18. Nd4
{[%clk 0:02:07.8]} 18... Kf8 {[%clk 0:02:09.9]} 19. g4 {[%clk 0:02:06.5]} 19...
Qc5 {[%clk 0:02:03]} 20. h5 {[%clk 0:01:59.5]} 20... gxh5 {[%clk 0:02:01.3]} 21.
gxh5 {[%clk 0:01:55.2]} 21... Nxh5 {[%clk 0:01:57.5]} 22. Rdg1 {[%clk
0:01:39.6]} 22... Bxg5 {[%clk 0:01:24.4]} 23. Rxg5 {[%clk 0:01:40.5]} 23... Qxd4
{[%clk 0:01:19.6]} 24. cxd4 {[%clk 0:01:27.2]} 24... Rxc2 {[%clk 0:01:18.6]} 25.
Kxc2 {[%clk 0:01:27.5]} 25... g6 {[%clk 0:01:19.1]} 26. Kb3 {[%clk 0:01:23.5]}
26... Ke7 {[%clk 0:01:19.1]} 27. Rgg1 {[%clk 0:01:22.6]} 27... Rb8 {[%clk
0:01:11.6]} 28. Rc1 {[%clk 0:01:22.4]} 28... Kd6 {[%clk 0:01:09.2]} 29. Ka4
{[%clk 0:01:20]} 29... Ra8 {[%clk 0:00:59.2]} 30. Kb5 {[%clk 0:01:19.2]} 30...
Ra6 {[%clk 0:00:55.8]} 31. Rc5 {[%clk 0:01:15.3]} 31... Ng3 {[%clk 0:00:52.2]}
32. Rd1 {[%clk 0:00:58.7]} 32... a4 {[%clk 0:00:51.1]} 33. Rc8 {[%clk
0:00:57.8]} 33... Nf5 {[%clk 0:00:46]} 34. Rf8 {[%clk 0:00:56.6]} 34... Ke7
{[%clk 0:00:44.7]} 35. Rb8 {[%clk 0:00:56.2]} 35... Nd6+ {[%clk 0:00:44.3]} 36.
Kb4 {[%clk 0:00:54.4]} 36... Kf6 {[%clk 0:00:40]} 37. Rc1 {[%clk 0:00:54.1]}
37... Rb6+ {[%clk 0:00:36]} 38. Kxa4 {[%clk 0:00:49.7]} 38... Rxb2 {[%clk
0:00:34.9]} 39. Rc7 {[%clk 0:00:45.8]} 39... Rxa2+ {[%clk 0:00:29.2]} 40. Kb3
{[%clk 0:00:45.6]} 40... Ra6 {[%clk 0:00:28.3]} 41. Rd8 {[%clk 0:00:43.1]} 41...
Rb6+ {[%clk 0:00:24.9]} 42. Kc2 {[%clk 0:00:39.6]} 42... Nb5 {[%clk 0:00:23]}
43. Rcd7 {[%clk 0:00:33.9]} 43... Nxd4+ {[%clk 0:00:22.3]} 44. Kd3 {[%clk
0:00:33.4]} 44... Nxf3 {[%clk 0:00:22.1]} 45. Rf8 {[%clk 0:00:33.2]} 45... Ne5+
{[%clk 0:00:22.1]} 0-1

[Event "*** Titled Tuesday Blitz"]
[Site "Chess.com"]
[Date "2021.04.27"]
[Round "10"]
[White "GelmanAlexander"]
[Black "KetiGrant"]
[Result "0-1"]
[WhiteElo "2555"]
[BlackElo "2382"]
[TimeControl "180+1"]
[EndTime "11:53:28 PDT"]
[Termination "KetiGrant won by resignation"]

1. d4 {[%clk 0:03:00.9]} 1... Nf6 {[%clk 0:02:59.3]} 2. Nc3 {[%clk 0:03:00.7]}
2... d5 {[%clk 0:02:57.9]} 3. Bf4 {[%clk 0:03:00.8]} 3... g6 {[%clk 0:02:53]} 4.
e3 {[%clk 0:03:00.8]} 4... Bg7 {[%clk 0:02:52.2]} 5. h4 {[%clk 0:03:01.2]} 5...
h5 {[%clk 0:02:47]} 6. Qd2 {[%clk 0:03:00]} 6... a6 {[%clk 0:02:40.6]} 7. Nf3
{[%clk 0:03:00]} 7... b5 {[%clk 0:02:38.1]} 8. Ne5 {[%clk 0:02:59.2]} 8... O-O
{[%clk 0:02:13.5]} 9. f3 {[%clk 0:02:57]} 9... c5 {[%clk 0:01:59.3]} 10. dxc5
{[%clk 0:02:35.4]} 10... Qa5 {[%clk 0:01:57.4]} 11. a3 {[%clk 0:02:13.6]} 11...
b4 {[%clk 0:01:39.9]} 12. Na2 {[%clk 0:02:06.1]} 12... Qxc5 {[%clk 0:01:37.9]}
13. Nxb4 {[%clk 0:02:04.2]} 13... Bf5 {[%clk 0:01:20]} 14. Bd3 {[%clk
0:02:02.5]} 14... a5 {[%clk 0:01:16.1]} 15. Na2 {[%clk 0:01:52.8]} 15... Nfd7
{[%clk 0:01:11.7]} 16. Nxd7 {[%clk 0:01:36.2]} 16... Nxd7 {[%clk 0:01:11.1]} 17.
Bxf5 {[%clk 0:01:35.5]} 17... gxf5 {[%clk 0:01:12]} 18. Nc3 {[%clk 0:01:32.1]}
18... e5 {[%clk 0:01:04.1]} 19. Bg3 {[%clk 0:01:26.3]} 19... d4 {[%clk
0:00:55.3]} 20. exd4 {[%clk 0:01:23.2]} 20... exd4 {[%clk 0:00:54.7]} 21. Ne2
{[%clk 0:01:23.6]} 21... Rfe8 {[%clk 0:00:52.5]} 22. O-O-O {[%clk 0:01:09.5]}
22... Nb6 {[%clk 0:00:48.8]} 23. Nxd4 {[%clk 0:00:55.5]} 23... Rad8 {[%clk
0:00:47.5]} 24. Bf2 {[%clk 0:00:49.2]} 24... Nc4 {[%clk 0:00:44]} 25. Qf4 {[%clk
0:00:41.4]} 25... Nxa3 {[%clk 0:00:19.5]} 26. Qxf5 {[%clk 0:00:18.9]} 26... Bh6+
{[%clk 0:00:15.8]} 27. f4 {[%clk 0:00:14.3]} 27... Qxf5 {[%clk 0:00:12.5]} 28.
Nxf5 {[%clk 0:00:13.5]} 28... Bxf4+ {[%clk 0:00:12.3]} 29. Be3 {[%clk
0:00:14.2]} 29... Rxe3 {[%clk 0:00:10.8]} 30. Rxd8+ {[%clk 0:00:12.7]} 30...
Re8+ {[%clk 0:00:09.6]} 31. Kd1 {[%clk 0:00:13.2]} 31... Rxd8+ {[%clk
0:00:09.8]} 32. Ke2 {[%clk 0:00:13.8]} 32... Nxc2 {[%clk 0:00:09.8]} 33. Rc1
{[%clk 0:00:13.2]} 33... Bxc1 {[%clk 0:00:09]} 0-1

[Event "*** Titled Tuesday Blitz"]
[Site "Chess.com"]
[Date "2021.04.27"]
[Round "10"]
[White "Rodalquilar"]
[Black "SF-96"]
[Result "1-0"]
[WhiteElo "2773"]
[BlackElo "2611"]
[TimeControl "180+1"]
[EndTime "11:53:31 PDT"]
[Termination "Rodalquilar won by resignation"]

1. d4 {[%clk 0:03:00.9]} 1... Nf6 {[%clk 0:03:00.2]} 2. Bf4 {[%clk 0:03:01.1]}
2... g6 {[%clk 0:02:57.5]} 3. e3 {[%clk 0:03:01.5]} 3... Bg7 {[%clk 0:02:57.9]}
4. Nf3 {[%clk 0:03:02]} 4... O-O {[%clk 0:02:58.6]} 5. Be2 {[%clk 0:03:02.6]}
5... b6 {[%clk 0:02:59.3]} 6. O-O {[%clk 0:03:03]} 6... Bb7 {[%clk 0:03:00]} 7.
h3 {[%clk 0:03:03.6]} 7... d6 {[%clk 0:03:00.6]} 8. Bh2 {[%clk 0:03:04]} 8...
Nbd7 {[%clk 0:03:01.3]} 9. a4 {[%clk 0:03:04.3]} 9... a5 {[%clk 0:03:01.3]} 10.
Nbd2 {[%clk 0:03:04.7]} 10... Qe8 {[%clk 0:03:00.6]} 11. Bb5 {[%clk 0:03:00.6]}
11... Ne4 {[%clk 0:02:50]} 12. Nxe4 {[%clk 0:02:54.8]} 12... Bxe4 {[%clk
0:02:50.9]} 13. c3 {[%clk 0:02:55]} 13... Rd8 {[%clk 0:02:42.8]} 14. b4 {[%clk
0:02:49.3]} 14... axb4 {[%clk 0:02:26.7]} 15. cxb4 {[%clk 0:02:49.4]} 15... e5
{[%clk 0:02:27.4]} 16. dxe5 {[%clk 0:02:47.2]} 16... dxe5 {[%clk 0:02:27.4]} 17.
Nd2 {[%clk 0:02:34.4]} 17... Ba8 {[%clk 0:02:23.5]} 18. Qc2 {[%clk 0:02:33.3]}
18... Qe7 {[%clk 0:02:05.1]} 19. Qxc7 {[%clk 0:02:18.5]} 19... Qg5 {[%clk
0:02:05.2]} 20. Bg3 {[%clk 0:02:08]} 20... Nf6 {[%clk 0:02:00.4]} 21. Rfd1
{[%clk 0:01:51.8]} 21... Nh5 {[%clk 0:01:27.9]} 22. Nf1 {[%clk 0:01:51.8]} 22...
Rxd1 {[%clk 0:01:25.1]} 23. Rxd1 {[%clk 0:01:51.3]} 23... Nxg3 {[%clk
0:01:25.5]} 24. Nxg3 {[%clk 0:01:51.7]} 24... h5 {[%clk 0:01:26.1]} 25. Bc6
{[%clk 0:01:49]} 25... Qh4 {[%clk 0:01:12.4]} 26. e4 {[%clk 0:01:24.3]} 26...
Qf6 {[%clk 0:01:04.7]} 27. Rd6 {[%clk 0:01:17.1]} 27... Qf4 {[%clk 0:01:03.5]}
28. Bxa8 {[%clk 0:01:12]} 28... Rxa8 {[%clk 0:01:01.8]} 29. Rd8+ {[%clk
0:01:12.3]} 29... Rxd8 {[%clk 0:01:01.2]} 30. Qxd8+ {[%clk 0:01:12.7]} 30... Kh7
{[%clk 0:01:01.9]} 31. Qxb6 {[%clk 0:00:50]} 31... h4 {[%clk 0:01:02.1]} 32. Nf1
{[%clk 0:00:50.3]} 32... Qxe4 {[%clk 0:00:59.2]} 33. a5 {[%clk 0:00:50.9]} 33...
Bf8 {[%clk 0:00:36]} 34. a6 {[%clk 0:00:33.8]} 34... Bxb4 {[%clk 0:00:29.3]} 35.
a7 {[%clk 0:00:34.1]} 35... Be1 {[%clk 0:00:29.9]} 36. Qe3 {[%clk 0:00:23.3]}
36... Qa8 {[%clk 0:00:23.9]} 37. Qxe1 {[%clk 0:00:23]} 37... Qxa7 {[%clk
0:00:24]} 38. Qxe5 {[%clk 0:00:23.2]} 38... Qa4 {[%clk 0:00:24.5]} 39. Qf6
{[%clk 0:00:21.5]} 39... Kg8 {[%clk 0:00:23.6]} 40. Ne3 {[%clk 0:00:22]} 40...
Qe4 {[%clk 0:00:22.6]} 41. Ng4 {[%clk 0:00:21.1]} 41... Qb1+ {[%clk 0:00:22.7]}
42. Kh2 {[%clk 0:00:21.1]} 42... Qb8+ {[%clk 0:00:23.4]} 43. f4 {[%clk
0:00:21.1]} 1-0